fUST/lending_fUST_20250401
["ID","MTS","AMOUNT","RATE_DAILY","PERIOD"]
[356964825,1743508240954,-500.0,0.00016438,2]
[356964826,1743508240963,-11.70545906,0.00016438,2]
[356964827,1743508241029,-488.29454094,0.00016438,2]
[356964828,1743508241039,-500.0,0.00016438,2]
[356964829,1743508241049,-1426.07,0.00016438,2]
[356964830,1743508241058,-500.0,0.00016438,2]
[356964831,1743508241068,-274.12024731,0.00016438,2]
[356964832,1743508241408,-225.87975269,0.00016438,2]
[356964833,1743508241419,-500.0,0.00016438,2]
[356964834,1743508241428,-500.0,0.00016438,2]
[356964835,1743508241439,-500.0,0.00016438,2]
[356964836,1743508241448,-500.0,0.00016438,2]
[356964837,1743508241458,-500.0,0.00016438,2]
[356964838,1743508241467,-500.0,0.00016438,2]
[356964839,1743508241478,-804.07,0.00016438,2]
[356964840,1743508241487,-500.0,0.00016438,2]
[356964841,1743508241497,-500.0,0.00016438,2]
[356964842,1743508241507,-500.0,0.00016438,2]
[356964843,1743508241516,-500.0,0.00016438,2]
[356964844,1743508241526,-215.16867726,0.00016469,2]
[356964845,1743508241536,-200.37588094,0.00016469,2]
[356964846,1743508241548,-215.16867726,0.00016535,2]
[356964847,1743508241558,-215.16867726,0.000166,2]
[356964848,1743508241568,-200.37588094,0.000166,2]
[356964849,1743508241577,-499.62698649,0.00016612,2]
[356964874,1743508246404,-500.0,0.00016438,2]
[356964875,1743508246414,-507.88,0.00016612,2]
[356964876,1743508395180,-216.98028555,0.00015658,2]
[356964877,1743508416546,-171.35,0.00015609,2]
[356964879,1743508777781,-150.39660977,0.00015608,2]
[356964880,1743508781160,-150.39660977,0.00015452,2]
[356964881,1743508838135,-191.90544578,0.00015608,2]
[356964882,1743508839676,-176.77692457,0.00015608,2]
[356964883,1743508863537,-222.82211988,0.00015608,2]
[356964884,1743508923503,-277.17788012,0.00015608,2]
[356964885,1743508967799,-191.90544578,0.00015608,2]
[356964886,1743508968766,-171.85455422,0.00015608,2]
[356964887,1743508985015,-162.11937614,0.00015608,2]
[356964888,1743509036497,-230.15819044,0.00015487,2]
[356964889,1743509231320,667.17,0.00010959,2]
[356964890,1743509313339,-300.0,0.00015346,2]
[356964891,1743509359571,-152.9334917,0.00015192,2]
[356964892,1743509359595,-83.77436129,0.00015346,2]
[356964893,1743509403716,-69.15913041,0.00015346,2]
[356964894,1743509403740,-27.89140256,0.00015487,2]
[356964895,1743509403765,-70.59242203,0.00015608,2]
[356964896,1743509410392,-154.87325922,0.00015452,2]
[356964933,1743509432513,-289.57596249,0.00015452,2]
[356964935,1743509432523,-151.53903751,0.00015608,2]
[356964937,1743509432535,-292.9101842,0.00015608,2]
[356964939,1743509432544,-63.797614,0.00015609,2]
[356964941,1743509432554,-330.95971445,0.00015658,2]
[356964943,1743509432565,-111.52000188,0.00016263,2]
[356964946,1743509432577,-304.38151027,0.00016263,2]
[356964948,1743509432586,-191.90544578,0.00016323,2]
[356964950,1743509432596,-448.56492205,0.00016338,2]
[356964952,1743509432605,-300.0,0.00016437,2]
[356964954,1743509432615,-500.0,0.00016438,2]
[356964956,1743509432624,-7829.7615265,0.00016438,2]
[356964958,1743509432634,-379.56,0.00016501,2]
[356964960,1743509432643,-379.56,0.00016501,2]
[356964962,1743509432652,-379.56,0.00016501,2]
[356964964,1743509432662,-379.56,0.00016501,2]
[356964966,1743509432672,-379.56,0.00016501,2]
[356964967,1743509432682,-379.56,0.00016501,2]
[356964968,1743509432692,-379.56,0.00016501,2]
[356964969,1743509432701,-379.56,0.00016501,2]
[356964970,1743509432711,-379.56,0.00016502,2]
[356964971,1743509432720,-379.56,0.00016502,2]
[356964972,1743509432730,-500.0,0.00016511,2]
[356964973,1743509432739,-500.0,0.00016511,2]
[356964974,1743509432749,-500.0,0.00016511,2]
[356964975,1743509432759,-500.0,0.00016511,2]
[356964976,1743509432768,-500.0,0.00016511,2]
[356964977,1743509432778,-500.0,0.00016511,2]
[356964978,1743509432787,-500.0,0.00016511,2]
[356964979,1743509432797,-500.0,0.00016511,2]
[356964980,1743509432806,-500.0,0.00016511,2]
[356964981,1743509432816,-644.47943774,0.00016511,2]
[356964982,1743509432825,-219.24963083,0.00016511,2]
[356964983,1743509432835,-500.0,0.00016511,2]
[356964984,1743509432845,-500.0,0.00016511,2]
[356964985,1743509432854,-500.0,0.00016511,2]
[356964986,1743509432863,-500.0,0.00016511,2]
[356964987,1743509432872,-500.0,0.00016511,2]
[356964988,1743509432881,-500.0,0.00016511,2]
[356964989,1743509432891,-500.0,0.00016511,2]
[356964990,1743509432900,-500.0,0.00016511,2]
[356964991,1743509432910,-500.0,0.00016511,2]
[356964992,1743509432919,-500.0,0.00016511,2]
[356964993,1743509432929,-500.0,0.00016511,2]
[356964994,1743509432938,-500.0,0.00016511,2]
[356964995,1743509432947,-500.0,0.00016511,2]
[356964996,1743509432956,-500.0,0.00016511,2]
[356964997,1743509432966,-377.01277599,0.00016511,2]
[356964998,1743509432975,-500.0,0.00016511,2]
[356964999,1743509432985,-500.0,0.00016511,2]
[356965000,1743509432994,-500.0,0.00016511,2]
[356965001,1743509433004,-500.0,0.00016511,2]
[356965002,1743509433014,-500.0,0.00016511,2]
[356965003,1743509433023,-500.0,0.00016511,2]
[356965004,1743509433033,-500.0,0.00016511,2]
[356965005,1743509433042,-500.0,0.00016511,2]
[356965006,1743509433052,-500.0,0.00016511,2]
[356965007,1743509433061,-500.0,0.00016511,2]
[356965008,1743509433071,-500.0,0.00016511,2]
[356965009,1743509433080,-286.47812141,0.00016511,2]
[356965010,1743509433092,-500.0,0.00016511,2]
[356965011,1743509433102,-500.0,0.00016511,2]
[356965012,1743509433112,-520.50901806,0.00016511,2]
[356965013,1743509433122,-500.0,0.00016511,2]
[356965014,1743509433132,-500.0,0.00016511,2]
[356965015,1743509433142,-500.0,0.00016511,2]
[356965016,1743509433152,-500.0,0.00016511,2]
[356965017,1743509433162,-500.0,0.00016511,2]
[356965018,1743509433172,-500.0,0.00016511,2]
[356965019,1743509433182,-500.0,0.00016511,2]
[356965020,1743509433192,-500.0,0.00016511,2]
[356965021,1743509433202,-500.0,0.00016511,2]
[356965022,1743509433212,-470.05317257,0.00016511,2]
[356965023,1743509433222,-500.0,0.00016511,2]
[356965024,1743509433231,-500.0,0.00016511,2]
[356965025,1743509433241,-500.0,0.00016511,2]
[356965026,1743509433251,-500.0,0.00016511,2]
[356965027,1743509433261,-500.0,0.00016511,2]
[356965028,1743509433271,-500.0,0.00016511,2]
[356965029,1743509433280,-620.50901806,0.00016511,2]
[356965030,1743509433289,-500.0,0.00016511,2]
[356965031,1743509433299,-500.0,0.00016511,2]
[356965032,1743509433308,-500.0,0.00016511,2]
[356965033,1743509433317,-500.0,0.00016511,2]
[356965034,1743509433329,-500.0,0.00016511,2]
[356965035,1743509433342,-500.0,0.00016511,2]
[356965036,1743509433353,-500.0,0.00016511,2]
[356965037,1743509433362,-500.0,0.00016511,2]
[356965038,1743509433372,-500.0,0.00016511,2]
[356965039,1743509433382,-500.0,0.00016511,2]
[356965040,1743509433392,-546.35555188,0.00016511,2]
[356965041,1743509433402,-546.35555188,0.00016511,2]
[356965042,1743509433413,-546.35555188,0.00016511,2]
[356965043,1743509433423,-546.35555188,0.00016511,2]
[356965044,1743509433433,-546.35555188,0.00016511,2]
[356965045,1743509433443,-546.35555188,0.00016511,2]
[356965046,1743509433453,-546.35555188,0.00016511,2]
[356965047,1743509433463,-546.35555188,0.00016511,2]
[356965048,1743509433472,-546.35555188,0.00016511,2]
[356965049,1743509433482,-546.35555188,0.00016511,2]
[356965050,1743509433493,-546.35555188,0.00016511,2]
[356965051,1743509433503,-546.35555188,0.00016511,2]
[356965052,1743509433512,-546.35555188,0.00016511,2]
[356965053,1743509433529,-546.35555188,0.00016511,2]
[356965054,1743509433540,-546.35555188,0.00016511,2]
[356965055,1743509433550,-546.35555188,0.00016511,2]
[356965056,1743509433566,-546.35555188,0.00016511,2]
[356965057,1743509433582,-546.35555188,0.00016511,2]
[356965058,1743509433594,-546.35555188,0.00016511,2]
[356965059,1743509433604,-546.35555188,0.00016511,2]
[356965060,1743509433613,-546.35555188,0.00016511,2]
[356965061,1743509433623,-546.35555188,0.00016511,2]
[356965062,1743509433634,-546.35555188,0.00016511,2]
[356965063,1743509433644,-546.35555188,0.00016511,2]
[356965064,1743509433653,-546.35555188,0.00016511,2]
[356965065,1743509433665,-546.35555188,0.00016511,2]
[356965066,1743509433675,-546.35555188,0.00016511,2]
[356965067,1743509433686,-546.35555188,0.00016511,2]
[356965068,1743509433696,-546.35555188,0.00016511,2]
[356965069,1743509433706,-546.35555188,0.00016511,2]
[356965070,1743509433716,-546.35555188,0.00016511,2]
[356965071,1743509433727,-546.35555188,0.00016511,2]
[356965072,1743509433737,-546.35555188,0.00016511,2]
[356965073,1743509433747,-546.35555188,0.00016511,2]
[356965074,1743509433757,-546.35555188,0.00016511,2]
[356965075,1743509433766,-546.35555188,0.00016511,2]
[356965076,1743509433776,-546.35555188,0.00016511,2]
[356965077,1743509433786,-546.35555188,0.00016511,2]
[356965078,1743509433796,-546.35555188,0.00016511,2]
[356965079,1743509433806,-546.35555169,0.00016511,2]
[356965080,1743509433817,-26075.57981822,0.00016512,2]
[356965132,1743509438250,-9160.40972863,0.00016512,2]
[356965133,1743509438303,-5272.4776449,0.00016512,2]
[356965134,1743509438315,-847.00340909,0.00016512,2]
[356965150,1743509443559,-257.45974531,0.00016347,2]
[356965226,1743509446454,-1220.84264962,0.00016347,2]
[356965233,1743509446509,-3079.18815088,0.00016347,2]
[356965236,1743509446518,-12237.29183061,0.00016512,2]
[356965256,1743509478714,-232.47202364,0.00016238,2]
[356965257,1743509520861,690.7,0.00010959,2]
[356965258,1743509863450,-186.9226645,0.000154,2]
[356965259,1743509890970,-237.0473355,0.00015387,2]
[356965260,1743509894969,-300.0,0.00015233,2]
[356965261,1743509918714,-123.97,0.00015233,2]
[356965262,1743509918737,-30.74305417,0.00015315,2]
[356965263,1743509925029,-228.36155915,0.00015162,2]
[356965410,1743510000603,-353.32835595,0.0001503,2]
[356965803,1743510046342,-206.14393455,0.00015029,2]
[356965835,1743510062194,-216.53306303,0.0001503,2]
[356965842,1743510068299,-187.7,0.00015029,2]
[356965856,1743510107520,-112.3,0.00015029,2]
[356965857,1743510107543,-108.30635781,0.0001503,2]
[356965858,1743510118190,-220.60635781,0.0001488,2]
[356965859,1743510124517,-334.10354898,0.0001488,2]
[356965860,1743510127591,-150.48385792,0.0001488,2]
[356965861,1743510133406,-175.67556508,0.00014365,2]
[356965862,1743510154217,-375.41759192,0.00014365,2]
[356965863,1743510183908,-45.375298,0.00014365,2]
[356965864,1743510183932,-175.1690347,0.0001488,2]
[356965865,1743510184422,-220.5443327,0.0001488,2]
[356965866,1743510186516,-175.1690347,0.0001488,2]
[356965867,1743510198726,-483.50487793,0.00014361,2]
[356965868,1743510242582,-257.50487793,0.00014361,2]
[356965869,1743510274986,-167.6064725,0.0001436,2]
[356965870,1743510302523,-200.2416205,0.0001436,2]
[356965871,1743510312452,-175.159423,0.00014215,2]
[356965872,1743510319618,-124.840577,0.00014215,2]
[356965873,1743510319644,-30.03268222,0.0001426,2]
[356965874,1743510329689,-234.4635,0.00014117,2]
[356965876,1743510362292,-251.49506895,0.00014117,2]
[356965877,1743510393857,-151.88177743,0.00014117,2]
[356965879,1743510423472,-294.25645884,0.00014117,2]
[356965880,1743510423859,-294.25645884,0.00014117,2]
[356965881,1743510464382,-186.92266443,0.00013528,2]
[356965884,1743510483336,-178.56437407,0.00013528,2]
[356965885,1743510483365,-82.6661841,0.00014117,2]
[356965886,1743510511983,-284.33193751,0.00014117,2]
[356965887,1743510512007,-51.84488109,0.0001426,2]
[356965888,1743510514750,-268.0,0.00013976,2]
[356965892,1743510520912,-151.0,0.0001336,2]
[356965895,1743510542470,-182.9538297,0.0001336,2]
[356965920,1743510632731,-54.3764559,0.0001336,2]
[356965921,1743510632740,-173.156209,0.00013699,2]
[356965922,1743510632750,-16.33193751,0.00013976,2]
[356965923,1743510632761,-1541.50650458,0.0001426,2]
[356965924,1743510632771,-300.0,0.00014357,2]
[356965925,1743510632780,-151.0,0.00014358,2]
[356965926,1743510632790,-151.0,0.00014358,2]
[356965927,1743510632800,-151.0,0.00014358,2]
[356965928,1743510632810,-151.0,0.00014358,2]
[356965929,1743510632820,-151.0,0.00014358,2]
[356965930,1743510632830,-151.0,0.00014358,2]
[356965931,1743510632839,-159.599555,0.00014358,2]
[356965932,1743510632849,-160.467511,0.00014358,2]
[356965933,1743510632858,-151.0,0.00014358,2]
[356965934,1743510632868,-151.0,0.00014358,2]
[356965935,1743510632877,-151.0,0.00014358,2]
[356965936,1743510632887,-151.0,0.00014358,2]
[356965937,1743510632896,-151.0,0.00014358,2]
[356965938,1743510632906,-151.0,0.00014358,2]
[356965939,1743510632915,-244.848,0.00014358,2]
[356965940,1743510632925,-500.0,0.00014358,2]
[356965941,1743510632934,-233.89797365,0.00014358,2]
[356965942,1743510632944,-309.60868016,0.00014358,2]
[356965943,1743510632953,-2843.6961561,0.00014358,2]
[356965944,1743510632963,-2843.6961561,0.00014358,2]
[356965945,1743510632972,-500.0,0.00014358,2]
[356965946,1743510632982,-2843.6961561,0.00014358,2]
[356965947,1743510632991,-500.0,0.00014358,2]
[356965948,1743510633001,-2843.6961561,0.00014358,2]
[356965949,1743510633010,-2843.6961561,0.00014358,2]
[356965950,1743510633019,-2843.6961561,0.00014358,2]
[356965951,1743510633029,-500.0,0.00014358,2]
[356965952,1743510633039,-2843.6961561,0.00014358,2]
[356965953,1743510633049,-154.85483687,0.00014358,2]
[356965954,1743510633059,-2843.6961561,0.00014358,2]
[356965955,1743510633068,-2843.6961561,0.00014358,2]
[356965956,1743510633078,-2843.6961561,0.00014358,2]
[356965957,1743510633088,-2843.6961561,0.00014358,2]
[356965958,1743510633098,-2843.6961561,0.00014358,2]
[356965959,1743510633108,-2843.6961561,0.00014358,2]
[356965960,1743510633118,-2843.6961561,0.00014358,2]
[356965961,1743510633127,-2843.6961561,0.00014358,2]
[356965962,1743510633137,-2843.6961561,0.00014358,2]
[356965963,1743510633147,-2843.6961561,0.00014358,2]
[356965964,1743510633156,-2843.6961561,0.00014358,2]
[356965965,1743510633166,-2843.6961561,0.00014358,2]
[356965966,1743510633176,-2843.6961561,0.00014358,2]
[356965967,1743510633185,-2843.6961561,0.00014358,2]
[356965968,1743510633195,-2843.6961561,0.00014358,2]
[356965969,1743510633205,-2843.6961561,0.00014358,2]
[356965970,1743510633214,-2843.6961561,0.00014358,2]
[356965971,1743510633224,-2843.6961561,0.00014358,2]
[356965972,1743510633233,-2843.6961561,0.00014358,2]
[356965973,1743510633243,-2843.6961561,0.00014358,2]
[356965974,1743510633252,-2843.6961561,0.00014358,2]
[356965975,1743510633262,-2843.6961561,0.00014358,2]
[356965976,1743510633271,-2843.6961561,0.00014358,2]
[356965977,1743510633281,-2843.6961561,0.00014358,2]
[356965978,1743510633291,-2843.6961561,0.00014358,2]
[356965979,1743510633300,-2843.6961561,0.00014358,2]
[356965980,1743510633310,-2843.6961561,0.00014358,2]
[356965981,1743510633319,-2843.6961561,0.00014358,2]
[356965982,1743510633329,-2843.6961561,0.00014358,2]
[356965983,1743510633338,-2843.6961561,0.00014358,2]
[356965984,1743510633348,-2843.6961561,0.00014358,2]
[356965985,1743510633358,-2843.6961561,0.00014358,2]
[356965986,1743510633368,-2843.6961561,0.00014358,2]
[356965987,1743510633378,-2843.6961561,0.00014358,2]
[356965988,1743510633388,-2843.6961561,0.00014358,2]
[356965989,1743510633398,-2843.6961561,0.00014358,2]
[356965990,1743510633408,-2843.6961561,0.00014358,2]
[356965991,1743510633417,-2843.6961561,0.00014358,2]
[356965992,1743510633427,-2843.6961561,0.00014358,2]
[356965993,1743510633437,-2843.6961561,0.00014358,2]
[356965994,1743510633447,-2843.6961561,0.00014358,2]
[356965995,1743510633458,-2843.6961561,0.00014358,2]
[356965996,1743510633468,-2843.6961561,0.00014358,2]
[356965997,1743510633478,-2843.6961561,0.00014358,2]
[356965998,1743510633488,-2843.6961561,0.00014358,2]
[356965999,1743510633498,-2843.6961561,0.00014358,2]
[356966000,1743510633507,-2843.6961561,0.00014358,2]
[356966001,1743510633517,-2843.6961561,0.00014358,2]
[356966002,1743510633527,-2843.6961561,0.00014358,2]
[356966003,1743510633537,-2843.6961561,0.00014358,2]
[356966004,1743510633547,-2843.6961561,0.00014358,2]
[356966005,1743510633557,-2843.6961561,0.00014358,2]
[356966006,1743510633567,-2843.6961561,0.00014358,2]
[356966007,1743510633576,-2843.6961561,0.00014358,2]
[356966008,1743510633586,-2843.6961561,0.00014358,2]
[356966009,1743510633597,-2843.6961561,0.00014358,2]
[356966010,1743510633606,-2843.6961561,0.00014358,2]
[356966011,1743510633616,-2843.6961561,0.00014358,2]
[356966012,1743510633626,-2843.6961561,0.00014358,2]
[356966013,1743510633636,-2843.6961561,0.00014358,2]
[356966014,1743510633647,-2843.6961561,0.00014358,2]
[356966015,1743510633657,-2843.6961561,0.00014358,2]
[356966016,1743510633666,-2843.6961561,0.00014358,2]
[356966017,1743510633676,-2843.6961561,0.00014358,2]
[356966018,1743510633686,-2843.6961561,0.00014358,2]
[356966019,1743510633696,-2843.6961561,0.00014358,2]
[356966020,1743510633707,-2843.6961561,0.00014358,2]
[356966021,1743510633718,-2843.6961561,0.00014358,2]
[356966022,1743510633729,-2843.6961561,0.00014358,2]
[356966023,1743510633739,-2843.6961561,0.00014358,2]
[356966024,1743510633749,-2843.6961561,0.00014358,2]
[356966025,1743510633759,-2843.6961561,0.00014358,2]
[356966026,1743510633771,-2843.6961561,0.00014358,2]
[356966027,1743510633781,-2843.6961561,0.00014358,2]
[356966028,1743510633790,-2843.6961561,0.00014358,2]
[356966029,1743510633801,-2843.6961561,0.00014358,2]
[356966030,1743510633811,-2843.6961561,0.00014358,2]
[356966031,1743510633821,-2843.6961561,0.00014358,2]
[356966032,1743510633831,-2843.6961561,0.00014358,2]
[356966033,1743510633841,-2843.6961561,0.00014358,2]
[356966034,1743510633851,-2843.6961561,0.00014358,2]
[356966035,1743510633861,-2843.6961561,0.00014358,2]
[356966036,1743510633871,-2843.6961561,0.00014358,2]
[356966037,1743510633880,-151.0,0.00014359,2]
[356966038,1743510633891,-151.0,0.00014359,2]
[356966039,1743510633901,-151.0,0.00014359,2]
[356966040,1743510633911,-151.0,0.00014359,2]
[356966041,1743510633921,-151.0,0.00014359,2]
[356966042,1743510633931,-151.0,0.00014359,2]
[356966043,1743510633941,-151.0,0.00014359,2]
[356966044,1743510633952,-151.0,0.00014359,2]
[356966045,1743510633962,-242.44486,0.00014359,2]
[356966046,1743510633972,-151.0,0.00014359,2]
[356966047,1743510633982,-805.295979,0.00014359,2]
[356966048,1743510633992,-805.295979,0.00014359,2]
[356966049,1743510634003,-805.295979,0.00014359,2]
[356966050,1743510634013,-805.295979,0.00014359,2]
[356966051,1743510634023,-805.295979,0.00014359,2]
[356966052,1743510634034,-805.295979,0.00014359,2]
[356966053,1743510634044,-805.295979,0.00014359,2]
[356966054,1743510634054,-805.295979,0.00014359,2]
[356966055,1743510634064,-805.295979,0.00014359,2]
[356966056,1743510634073,-805.295979,0.00014359,2]
[356966057,1743510634083,-805.295979,0.00014359,2]
[356966058,1743510634092,-805.295979,0.00014359,2]
[356966059,1743510634101,-805.295979,0.00014359,2]
[356966060,1743510634110,-805.295979,0.00014359,2]
[356966061,1743510634120,-805.295979,0.00014359,2]
[356966062,1743510634129,-805.295979,0.00014359,2]
[356966063,1743510634139,-805.295979,0.00014359,2]
[356966064,1743510634149,-805.295979,0.00014359,2]
[356966065,1743510634159,-805.295979,0.00014359,2]
[356966066,1743510634169,-805.29597327,0.00014359,2]
[356966067,1743510634178,-151.0,0.00014359,2]
[356966068,1743510634188,-151.0,0.00014359,2]
[356966069,1743510634198,-151.0,0.00014359,2]
[356966070,1743510634207,-151.0,0.00014359,2]
[356966071,1743510634217,-151.0,0.00014359,2]
[356966072,1743510634228,-151.0,0.00014359,2]
[356966073,1743510634238,-151.0,0.00014359,2]
[356966074,1743510634247,-151.0,0.00014359,2]
[356966075,1743510634257,-151.0,0.00014359,2]
[356966076,1743510634266,-151.0,0.00014359,2]
[356966077,1743510634276,-151.0,0.00014359,2]
[356966078,1743510634286,-151.0,0.00014359,2]
[356966079,1743510634296,-151.0,0.00014359,2]
[356966080,1743510634305,-151.0,0.00014359,2]
[356966081,1743510634315,-151.0,0.00014359,2]
[356966082,1743510634325,-187.479762,0.00014359,2]
[356966083,1743510634339,-162.70696,0.0001436,2]
[356966084,1743510634356,-162.70696,0.0001436,2]
[356966085,1743510634368,-162.70696,0.0001436,2]
[356966086,1743510634382,-162.70696,0.0001436,2]
[356966087,1743510634392,-162.70696,0.0001436,2]
[356966088,1743510634402,-162.70696,0.0001436,2]
[356966089,1743510634412,-162.70696,0.0001436,2]
[356966090,1743510634422,-162.70696,0.0001436,2]
[356966091,1743510634432,-162.706956,0.0001436,2]
[356966092,1743510634442,-590.768726,0.0001436,2]
[356966093,1743510634455,-590.768726,0.0001436,2]
[356966094,1743510634465,-590.768726,0.0001436,2]
[356966095,1743510634475,-590.768726,0.0001436,2]
[356966096,1743510634485,-590.768726,0.0001436,2]
[356966097,1743510634495,-590.768726,0.0001436,2]
[356966098,1743510634505,-590.768726,0.0001436,2]
[356966099,1743510634515,-590.768726,0.0001436,2]
[356966100,1743510634525,-590.768726,0.0001436,2]
[356966101,1743510634534,-590.768726,0.0001436,2]
[356966102,1743510634544,-590.768726,0.0001436,2]
[356966103,1743510634554,-590.768726,0.0001436,2]
[356966104,1743510634564,-590.768726,0.0001436,2]
[356966105,1743510634573,-590.768726,0.0001436,2]
[356966106,1743510634583,-590.768726,0.0001436,2]
[356966107,1743510634592,-590.768726,0.0001436,2]
[356966108,1743510634604,-590.768726,0.0001436,2]
[356966109,1743510634617,-590.768726,0.0001436,2]
[356966110,1743510634627,-590.768726,0.0001436,2]
[356966111,1743510634636,-590.76872614,0.0001436,2]
[356966112,1743510634645,-40168.08385404,0.00014361,2]
[356966113,1743510634656,-571.48711884,0.000149,2]
[356966114,1743510634666,-16000.0,0.00015,2]
[356966115,1743510634676,-19890.15280331,0.0001503,2]
[356966116,1743510634686,-461.6606331,0.0001525,2]
[356966117,1743510634696,-913.19802953,0.00015315,2]
[356966118,1743510634706,-206.72883825,0.00015373,2]
[356966119,1743510634719,-21085.0142342,0.00015387,2]
[356966120,1743510634729,-63.0773355,0.000154,2]
[356966121,1743510634739,-709.71771577,0.000155,2]
[356966122,1743510634748,-420.0,0.00015723,2]
[356966123,1743510634758,-187.7402045,0.00015978,2]
[356966124,1743510634768,-187.7402045,0.00015978,2]
[356966125,1743510634778,-169.8343022,0.00015978,2]
[356966126,1743510634788,-7644.47834298,0.00016,2]
[356966127,1743510634799,-334.3124499,0.00016113,2]
[356966128,1743510634809,-167.26919814,0.00016238,2]
[356966129,1743510634819,-153.56613262,0.00016247,2]
[356966130,1743510634828,-631.70964604,0.00016252,2]
[356966131,1743510634838,-9002.44871915,0.0001626,2]
[356966132,1743510634848,-5000.0,0.00016335,2]
[356966133,1743510634858,-160.0,0.00016437,2]
[356966134,1743510634868,-160.0,0.00016437,2]
[356966135,1743510634878,-160.0,0.00016437,2]
[356966136,1743510634888,-500.0,0.00016438,2]
[356966137,1743510634898,-500.0,0.00016438,2]
[356966138,1743510634908,-500.0,0.00016438,2]
[356966139,1743510634917,-500.0,0.00016438,2]
[356966140,1743510634927,-553.91782263,0.00016438,2]
[356966141,1743510635042,-500.0,0.00016438,2]
[356966142,1743510635052,-500.0,0.00016438,2]
[356966143,1743510635062,-500.0,0.00016438,2]
[356966144,1743510635072,-500.0,0.00016438,2]
[356966145,1743510635081,-500.0,0.00016438,2]
[356966146,1743510635091,-500.0,0.00016438,2]
[356966147,1743510635101,-500.0,0.00016438,2]
[356966148,1743510635111,-500.0,0.00016438,2]
[356966149,1743510635121,-500.0,0.00016438,2]
[356966150,1743510635130,-500.0,0.00016438,2]
[356966151,1743510635140,-500.0,0.00016438,2]
[356966152,1743510635149,-500.0,0.00016438,2]
[356966153,1743510635158,-500.0,0.00016438,2]
[356966154,1743510635168,-500.0,0.00016438,2]
[356966155,1743510635178,-500.0,0.00016438,2]
[356966156,1743510635188,-500.0,0.00016438,2]
[356966157,1743510635198,-500.0,0.00016438,2]
[356966158,1743510635208,-500.0,0.00016438,2]
[356966159,1743510635217,-500.0,0.00016438,2]
[356966160,1743510635227,-500.0,0.00016438,2]
[356966161,1743510635238,-500.0,0.00016438,2]
[356966162,1743510635247,-500.0,0.00016438,2]
[356966163,1743510635257,-453.07091777,0.00016438,2]
[356966164,1743510635267,-510.77916046,0.00016438,2]
[356966165,1743510635276,-500.0,0.00016438,2]
[356966166,1743510635285,-506.06312732,0.00016438,2]
[356966167,1743510635295,-500.0,0.00016438,2]
[356966168,1743510635305,-524.89954842,0.00016438,2]
[356966169,1743510635314,-500.0,0.00016438,2]
[356966170,1743510635324,-500.0,0.00016438,2]
[356966171,1743510635334,-500.0,0.00016438,2]
[356966172,1743510635344,-500.0,0.00016438,2]
[356966173,1743510635354,-500.0,0.00016438,2]
[356966174,1743510635363,-500.0,0.00016438,2]
[356966175,1743510635373,-500.0,0.00016438,2]
[356966176,1743510635383,-500.0,0.00016438,2]
[356966177,1743510635392,-500.0,0.00016438,2]
[356966178,1743510635402,-500.0,0.00016438,2]
[356966179,1743510635412,-506.6040793,0.00016438,2]
[356966180,1743510635421,-489.37994536,0.00016438,2]
[356966181,1743510635431,-500.0,0.00016438,2]
[356966182,1743510635441,-500.0,0.00016438,2]
[356966183,1743510635452,-511.3283417,0.00016438,2]
[356966184,1743510635463,-500.0,0.00016438,2]
[356966185,1743510635472,-524.30957115,0.00016438,2]
[356966186,1743510635482,-500.0,0.00016438,2]
[356966187,1743510635491,-500.0,0.00016438,2]
[356966188,1743510635501,-500.0,0.00016438,2]
[356966189,1743510635511,-500.0,0.00016438,2]
[356966190,1743510635520,-500.0,0.00016438,2]
[356966191,1743510635530,-500.0,0.00016438,2]